bitfinex/quotes_ETHUSD_20220219
["timestamp","ask_amount","ask_price","bid_price","bid_amount"]
[1645290670639,7.32326874,2759.7,2759.4,0.00326914]
[1645290671641,7.32,2759.7,2759.4,0.63659952]
[1645290671895,7.32326871,2759.7,2759.5,1.53944592]
[1645290672897,7.32,2759.7,2759.5,1.53944592]
[1645290673095,7.32326874,2759.7,2759.5,1.53944592]
[1645290674095,7.32,2759.7,2759.5,1.53944592]
[1645290674300,7.32326874,2759.7,2759.5,1.53944592]
[1645290675095,0.00326874,2759.7,2759.5,1.53944592]
[1645290675296,7.32,2760.2,2759.5,1.53944592]
[1645290675537,0.00326874,2759.7,2759.5,1.53944592]
[1645290676339,7.32,2760.2,2759.5,1.53944592]
[1645290676741,0.00326874,2759.7,2759.5,1.53944592]
[1645290676939,3.51147556,2760.4,2759.8,0.00653748]
[1645290677240,3.51147556,2760.4,2759.9,0.56000739]
[1645290677440,0.66017556,2760.4,2759.9,0.56000739]
[1645290677642,0.64710388,2760.4,2759.9,0.56000739]
[1645290678442,0.64710388,2760.4,2759.8,0.00653748]
[1645290678646,0.90647,2760.3,2759.8,0.00653748]
[1645290679692,0.58748945,2759.9,2759.8,0.00653748]
[1645290679897,0.3,2759.9,2759.8,3.748e-05]
[1645290680096,46.99996252,2759.8,2759.1,0.5]
[1645290680299,46.99996252,2759.8,2759.5,0.00146283]
[1645290680300,1.525,2759.7,2759.5,0.00146283]
[1645290680494,5.3473,2759.7,2759.5,0.00146283]
[1645290680694,46.99853717,2759.3,2758.7,1.5397909]
[1645290680894,2.33867,2759.4,2758.8,0.70037013]
[1645290681093,0.60668762,2759.5,2758.8,0.70037013]
[1645290681094,1.0,2759.2,2758.8,0.70037013]
[1645290681299,0.60668762,2759.5,2758.8,0.70037013]
[1645290681492,0.60668762,2759.5,2758.9,1.53977282]
[1645290681692,0.60668762,2759.5,2758.6,0.00653844]
[1645290681893,0.60668762,2759.5,2758.7,1.53974168]
[1645290681894,1.51342762,2759.5,2758.7,1.53974168]
[1645290682294,0.60668762,2759.5,2758.7,1.53974168]
[1645290682693,0.60668762,2759.5,2759.0,0.70405181]
[1645290682895,0.9067,2759.9,2759.8,1.23851192]
[1645290683149,2.49386443,2760.0,2758.6,0.00653844]
[1645290683150,45.76148808,2759.8,2758.6,0.00653844]
[1645290683343,3.485,2759.9,2758.7,1.53963672]
[1645290683550,3.5,2759.8,2758.7,1.53963672]
[1645290683743,3.485,2759.9,2758.7,1.53963672]
[1645290684144,0.90663,2759.8,2758.7,1.53963672]
[1645290684345,1.90663,2759.8,2759.1,0.61252986]
[1645290685146,1.90989999,2759.8,2759.3,0.00327052]
[1645290685945,0.90989999,2759.8,2759.3,0.00327052]
[1645290686146,1.90663,2759.8,2759.1,0.61252986]
[1645290686347,1.90990006,2759.8,2759.4,0.00327052]
[1645290686786,4.40990006,2759.8,2759.4,0.00327052]
[1645290686987,1.90990006,2759.8,2759.4,0.00327052]
[1645290687188,1.90663,2759.8,2758.7,1.53966937]
[1645290687392,5.40663,2759.8,2758.7,1.53966937]
[1645290687588,5.40663,2759.8,2759.4,0.00327055]
[1645290687589,5.40990009,2759.8,2759.4,0.00327055]
[1645290687789,1.90990009,2759.8,2759.4,0.00327055]
[1645290688392,1.90663,2759.8,2759.0,0.71638588]
[1645290688589,2.81336,2759.8,2759.4,0.00327055]
[1645290688792,2.81663009,2759.8,2759.4,0.00327055]
[1645290689589,1.81348,2759.7,2759.0,0.71638588]
[1645290689992,2.72026,2759.7,2759.4,0.00327055]
[1645290690390,2.80637616,2759.7,2759.4,0.00327055]
[1645290690637,1.0,2759.6,2759.4,0.00327055]
[1645290690838,1.0,2759.6,2758.6,0.50653844]
[1645290691046,0.90679,2759.4,2758.7,1.53978522]
[1645290691939,1.43384403,2759.4,2758.7,2.19485285]
[1645290692139,1.43384403,2759.4,2758.8,1.53978522]
[1645290692338,1.43384403,2759.4,2758.9,0.00327074]
[1645290693339,1.43384403,2759.4,2758.8,1.53978522]
[1645290693639,1.43384403,2759.4,2759.0,0.00327068]
[1645290694138,0.90679,2759.4,2759.0,0.00327068]
[1645290694406,0.90679,2759.4,2759.0,1.53978522]
[1645290694908,0.90679,2759.4,2759.1,0.00327066]
[1645290695604,0.90679,2759.4,2759.0,1.53978522]
[1645290696006,0.90679,2759.4,2759.1,0.00327063]
[1645290696405,1.43179,2759.4,2759.1,0.00327063]
[1645290696807,0.90667,2759.6,2759.0,1.53978522]
[1645290697208,3.17486986,2759.8,2759.1,0.00327063]
[1645290697404,1.0,2759.7,2759.1,0.00327063]
[1645290698035,1.0,2759.7,2759.0,1.53978522]
[1645290698239,0.90987996,2759.8,2759.3,0.00327055]
[1645290699237,0.90987996,2759.8,2759.0,1.53978522]
[1645290699238,0.90661,2759.8,2759.0,1.53978522]
[1645290699438,0.90673,2759.7,2759.4,0.00327052]
[1645290699646,1.54872308,2759.6,2759.4,0.00327052]
[1645290700040,2.54872308,2759.6,2759.4,0.00327052]
[1645290700541,2.54872308,2759.6,2759.0,1.53978522]
[1645290700742,2.54872308,2759.6,2759.4,0.0032705]
[1645290701643,2.54872308,2759.6,2759.0,1.53978522]
[1645290701900,2.54872308,2759.6,2759.4,0.0032705]
[1645290702505,0.3,2759.5,2759.4,0.0032705]
[1645290702807,0.3,2759.5,2759.0,1.53978522]
[1645290702808,0.90686,2759.3,2759.0,1.53978522]
[1645290703206,1.90686,2759.3,2759.0,1.53978522]
[1645290704006,0.94712053,2759.2,2759.0,1.53978522]
[1645290704506,0.94712053,2759.2,2759.0,1.5430559]
[1645290705306,0.94712053,2759.2,2759.0,1.53978522]
[1645290705542,0.94712053,2759.2,2759.0,1.54305593]
[1645290706543,0.94712053,2759.2,2759.0,1.53978522]
[1645290706743,0.94712053,2759.2,2759.0,1.54305593]
[1645290707143,0.84712053,2759.2,2759.0,1.54305593]
[1645290707745,0.84712053,2759.2,2759.0,1.53978522]
[1645290708045,0.84712053,2759.2,2759.0,1.54305593]
[1645290708944,0.84712053,2759.2,2759.0,1.53978522]
[1645290709144,0.84712053,2759.2,2759.0,1.54305593]
[1645290709593,1.40393252,2759.2,2759.0,1.54305593]
[1645290709991,1.40393252,2759.2,2759.0,1.53978522]
[1645290710392,1.40393252,2759.2,2759.0,1.54305593]
[1645290711392,1.40393252,2759.2,2759.0,1.53978522]
[1645290711593,1.40393252,2759.2,2759.0,1.54305593]
[1645290712198,45.45694407,2759.0,2758.9,3.6]
[1645290712395,2.73209,2759.0,2758.9,3.6]
[1645290712592,43.4,2758.9,2757.9,0.68443565]
[1645290712799,1.825,2758.9,2757.8,3.5]
[1645290713045,0.6161509,2758.8,2757.8,3.5]
[1645290713246,0.9161509,2758.8,2757.8,3.5]
[1645290713645,46.99346156,2758.6,2757.8,3.5]
[1645290713846,46.99346156,2758.6,2757.5,4.36563565]
[1645290713847,1.90713,2758.5,2757.5,4.36563565]
[1645290714044,1.90713,2758.5,2757.6,0.68443565]
[1645290714045,2.43213,2758.5,2757.6,0.68443565]
[1645290714645,2.43213,2758.5,2757.7,0.68443565]
[1645290714846,2.43213,2758.5,2757.6,0.68443565]
[1645290715047,0.58707611,2758.2,2757.7,0.68443565]
[1645290715247,0.62058235,2758.4,2758.3,1.05580297]
[1645290715451,2.43486235,2758.4,2758.3,1.05580297]
[1645290716247,3.34203235,2758.4,2758.3,1.05580297]
[1645290716646,4.34203235,2758.4,2758.3,1.05580297]
[1645290716892,4.34098968,2758.4,2758.3,4.65580297]
[1645290718103,4.34098968,2758.4,2758.3,1.05580297]
[1645290721241,4.34098968,2758.4,2758.3,0.12400527]
[1645290721445,0.90735,2758.0,2757.2,0.68443565]
[1645290721643,0.525,2757.9,2757.1,0.5]
[1645290721841,0.525,2757.9,2757.0,3.5]
[1645290721842,1.43245,2757.9,2757.0,3.5]
[1645290722040,0.3,2757.8,2756.8,4.18443565]
[1645290722342,0.525,2757.7,2756.8,3.5]
[1645290722540,1.43251,2757.7,2757.1,0.53390834]
[1645290722744,1.73251,2757.7,2757.1,0.53390834]
[1645290722940,2.73251,2757.7,2757.1,0.53390834]
[1645290723145,2.73251,2757.7,2756.6,8.00443565]
[1645290723341,0.90744,2757.6,2756.6,8.00443565]
[1645290723540,0.90744,2757.6,2757.3,0.00283728]
[1645290724391,0.90745,2757.4,2757.3,0.00283728]
[1645290724591,0.90753,2757.2,2756.6,8.00443565]
[1645290725291,0.90753,2757.2,2756.6,7.32]
[1645290725891,0.90753,2757.2,2756.7,0.63648376]
[1645290725892,0.90754,2757.1,2756.7,0.63648376]
[1645290726094,0.90754,2757.1,2756.8,0.00283751]
[1645290726993,0.90754,2757.1,2756.4,0.00313457]
[1645290727192,0.90754,2757.1,2756.8,0.0030742]
[1645290728057,0.90754,2757.1,2756.4,0.00313457]
[1645290728449,0.90754,2757.1,2756.8,0.0030742]
[1645290729251,0.90754,2757.1,2756.4,3.60313457]
[1645290729452,0.8576592,2757.0,2756.4,3.60313457]
[1645290729756,0.90766,2756.9,2756.8,0.0030742]
[1645290729953,0.90766,2756.9,2756.4,3.60313457]
[1645290729954,46.9969258,2756.8,2756.4,3.60313457]
[1645290730155,0.525,2756.7,2756.4,3.6]
[1645290730454,0.525,2756.7,2756.4,3.60313457]
[1645290730455,4.24865,2756.7,2756.4,3.60313457]
[1645290730651,4.24865,2756.7,2756.4,3.6]
[1645290730652,3.84865,2756.7,2756.4,3.6]
[1645290730855,1.90787,2756.6,2756.4,3.6]
[1645290731049,2.43287,2756.6,2756.4,3.6]
[1645290731250,2.43287,2756.6,2756.4,3.55289906]
[1645290731454,2.43287,2756.6,2755.7,0.00313457]
[1645290731455,0.90796,2756.3,2755.7,0.00313457]
[1645290731658,2.34099,2756.2,2755.7,0.00313457]
[1645290731892,2.34099,2756.2,2755.2,3.45313457]
[1645290731893,2.94099,2756.2,2755.2,3.45313457]
[1645290732194,3.94099,2756.2,2755.3,1.54148056]
[1645290732398,3.94099,2756.2,2755.4,1.54148056]
[1645290732591,1.8160303,2756.0,2755.5,1.54148056]
[1645290732791,2.72396,2755.9,2755.6,1.54148056]
[1645290732990,2.72396,2755.9,2755.7,1.54148056]
[1645290733192,2.72396,2755.9,2755.8,1.54148056]
[1645290733400,2.72396,2755.9,2755.2,0.54293535]
[1645290733599,2.72396,2755.9,2755.3,1.5416258]
[1645290733600,0.908077,2755.7,2755.3,1.5416258]
[1645290733792,0.908077,2755.7,2754.9,1.5416258]
[1645290733793,1.81629,2755.6,2754.9,1.5416258]
[1645290733992,1.81629,2755.6,2754.7,0.68443565]
[1645290733993,1.81629,2755.6,2755.0,1.5416258]
[1645290734192,1.81629,2755.6,2755.1,1.5416258]
[1645290734391,1.81629,2755.6,2755.4,0.00327261]
[1645290734993,3.63261,2755.6,2755.4,0.00327261]
[1645290735197,0.525,2755.5,2755.4,0.00327261]
[1645290735394,0.525,2755.5,2755.0,1.5416258]
[1645290735643,0.825,2755.5,2755.4,0.00327261]
[1645290735845,52.0,2755.4,2755.2,1.5416258]
[1645290736045,52.0,2755.4,2754.9,0.01309241]
[1645290736046,0.525,2755.3,2754.9,0.01309241]
[1645290736241,0.90838,2755.2,2754.9,0.01309241]
[1645290736441,0.825,2755.1,2754.9,0.01309241]
[1645290736740,0.9083566,2755.0,2754.3,0.68443565]
[1645290736941,0.90836,2754.8,2754.3,0.68443565]
[1645290737144,1.43336,2754.8,2754.3,0.68443565]
[1645290737441,0.525,2754.8,2754.5,0.66306948]
[1645290737646,3.0794,2755.5,2754.9,1.575]
[1645290737841,1.85648561,2755.7,2754.9,1.575]
[1645290737842,0.94839561,2755.7,2754.9,1.575]
[1645290738444,0.525,2756.6,2755.0,4.18443565]
[1645290738646,3.6467,2756.6,2755.1,3.5]
[1645290738845,3.6467,2756.6,2756.3,0.60890481]
[1645290739142,0.53822984,2756.8,2755.3,6.5123]
[1645290739394,0.53822984,2756.8,2755.4,0.1814]
[1645290739994,0.83822984,2756.8,2755.4,0.1814]
[1645290740196,1.0,2756.4,2755.4,0.1814]
[1645290740395,1.0,2756.4,2756.0,0.61529267]
[1645290741596,1.0,2756.4,2756.0,4.21529267]
[1645290741795,0.90761,2756.8,2756.0,4.21529267]
[1645290742003,2.73590423,2757.1,2756.5,0.63087229]
[1645290742005,1.82829423,2757.1,2756.5,0.63087229]
[1645290742198,0.01308423,2757.1,2756.5,0.63087229]
[1645290742600,0.54862521,2757.5,2756.5,0.63087229]
[1645290742800,0.54862521,2757.5,2757.0,0.70208687]
[1645290742801,1.45602521,2757.5,2757.0,0.70208687]
[1645290743058,1.81476,2757.8,2757.0,0.70208687]
[1645290743059,0.01308444,2757.4,2757.0,0.70208687]
[1645290743849,9.3872,2758.2,2757.0,0.70208687]
[1645290744044,0.01468279,2757.8,2757.0,0.70208687]
[1645290744244,0.01468279,2757.8,2757.5,0.5960258]
[1645290744845,0.01468279,2757.8,2756.8,3.5]
[1645290745045,0.90725,2757.9,2756.8,3.5]
[1645290745245,0.00293674,2757.8,2756.8,3.5]
[1645290746046,0.00293674,2757.8,2757.3,0.51039525]
[1645290746245,0.90725,2757.9,2757.3,0.51039525]
[1645290746451,0.00293654,2757.8,2757.3,0.51039525]
[1645290747295,1.0,2758.0,2757.3,0.51039525]
[1645290747697,0.00284796,2757.8,2757.3,0.51039525]
[1645290748498,1.0,2758.0,2757.4,3.5]
[1645290748698,1.8142,2758.6,2757.3,0.51039525]
[1645290748699,1.0,2758.4,2757.3,0.51039525]
[1645290748898,0.0028666,2757.8,2757.4,0.1812]
[1645290749700,0.90712,2758.3,2757.4,0.1812]
[1645290749897,0.90712,2758.3,2757.8,0.53029956]
[1645290750097,0.01146523,2758.2,2757.8,0.53029956]
[1645290750942,0.90712,2758.3,2757.8,0.48029956]
[1645290751147,0.00287154,2758.1,2757.8,0.48029956]
[1645290751342,0.85999154,2758.3,2757.8,0.48029956]
[1645290752844,0.85999154,2758.3,2757.8,4.08029956]
[1645290755991,0.00327088,2758.2,2757.8,4.08029956]
[1645290756994,0.85999154,2758.3,2757.8,4.08029956]
[1645290757195,1.0,2758.4,2757.8,4.08029956]
[1645290757196,0.00327085,2758.2,2757.8,4.08029956]
[1645290757393,0.00327085,2758.2,2757.8,3.6]
[1645290758247,1.0,2758.4,2757.8,3.6]
[1645290758549,1.0,2758.4,2757.9,0.59275753]
[1645290758550,0.00327085,2758.2,2757.9,0.59275753]
[1645290759350,1.0,2758.4,2757.9,0.59275753]
[1645290759551,0.00327088,2758.2,2757.9,0.59275753]
[1645290759951,0.00327088,2758.2,2757.8,3.6]
[1645290760550,1.0,2758.4,2757.8,3.6]
[1645290760951,0.00327085,2758.2,2757.9,1.54036952]
[1645290761148,1.0,2758.4,2758.2,0.00654169]
[1645290761548,1.0,2758.4,2758.3,0.64348122]
[1645290761804,1.0,2758.8,2758.3,0.64348122]
[1645290762199,2.8853,2759.1,2758.3,0.64348122]
[1645290762599,1.0,2759.2,2758.3,0.64348122]
[1645290762798,1.0,2759.2,2758.8,0.62357231]
[1645290763001,0.90685,2759.1,2758.2,0.00654169]
[1645290764400,0.00327063,2758.8,2758.2,0.00654169]
[1645290765201,0.00327063,2758.8,2758.3,0.59057689]
[1645290765408,0.00689782,2759.4,2758.4,5.0401037]
[1645290765663,7.07e-05,2758.6,2758.5,12.5701037]
[1645290765853,7.07e-05,2758.6,2758.5,16.0701037]
[1645290766250,3.42097803,2759.9,2758.6,7.0]
[1645290766448,0.91348899,2759.8,2759.3,0.59624854]
[1645290766652,0.91348899,2759.8,2758.7,3.5]
[1645290766853,0.91348899,2759.8,2758.5,14.53]
[1645290767050,0.91348899,2759.8,2758.6,1.53984623]
[1645290767254,0.91348899,2759.8,2758.6,12.56984623]
[1645290767448,0.91348899,2759.8,2758.7,5.03984623]
[1645290767654,0.91348899,2759.8,2758.7,3.5]
[1645290767853,0.91348899,2759.8,2759.2,0.67748498]
[1645290768049,0.86348899,2759.8,2759.2,0.67748498]
[1645290768658,10.0732,2760.2,2759.2,0.67748498]
[1645290768856,7.32,2760.2,2759.2,0.67748498]
[1645290769293,0.0032676,2759.6,2759.2,0.67748498]
[1645290770094,8.32,2760.2,2759.2,0.67748498]
[1645290770296,8.32,2760.2,2759.2,11.70748498]
[1645290770498,6.765e-05,2759.5,2759.3,15.43632]
[1645290770698,6.765e-05,2759.5,2759.3,11.93632]
[1645290770900,6.765e-05,2759.5,2759.4,14.7111]
[1645290771098,6.765e-05,2759.5,2759.4,14.53]
[1645290771296,1.0,2760.7,2759.4,14.53]
[1645290771499,1.0,2760.7,2759.5,11.9362604]
[1645290771500,0.95,2760.7,2759.5,11.9362604]
[1645290771699,0.95,2760.7,2759.6,3.5]
[1645290771900,0.95,2760.7,2759.5,0.2926]
[1645290772300,0.95,2760.7,2759.6,0.90625]
[1645290772899,0.95,2760.7,2760.3,0.51132848]
[1645290773155,0.95,2760.7,2759.3,0.1811]
[1645290773953,0.95,2760.7,2759.2,4.8738]
[1645290774159,0.00310597,2760.1,2759.0,0.1842072]
[1645290774355,0.525,2760.0,2759.0,0.1842072]
[1645290774553,0.525,2760.0,2759.0,0.0031072]
[1645290775056,0.525,2760.0,2758.7,3.5]
[1645290775256,0.00310621,2759.6,2759.1,0.58913894]
[1645290776249,0.9067151,2759.9,2759.1,0.58913894]
[1645290776451,0.90675,2759.5,2759.1,0.58913894]
[1645290776651,0.90675,2759.5,2759.0,3.55310678]
[1645290776897,0.90679,2759.4,2759.0,3.55310678]
[1645290777100,2.43179,2759.4,2759.0,3.55310678]
[1645290777299,1.43179,2759.4,2759.0,3.55310678]
[1645290777497,1.20679,2759.3,2759.0,3.55]
[1645290777699,1.20679,2759.3,2758.2,0.00654169]
[1645290777700,2.11384,2759.0,2758.2,0.00654169]
[1645290777900,0.6,2759.0,2758.2,0.00654169]
[1645290778197,0.61111616,2759.2,2758.3,1.54000756]
[1645290778198,0.525,2759.2,2758.3,1.54000756]
[1645290778795,0.525,2759.2,2758.8,0.58841084]
[1645290779198,0.94713776,2759.3,2758.8,0.58841084]
[1645290779397,0.94713776,2759.3,2758.9,1.539763]
[1645290779597,0.00305596,2759.6,2758.9,1.539763]
[1645290779998,1.2223,2760.1,2758.9,1.539763]
[1645290780206,0.00305618,2759.6,2759.0,0.00305693]
[1645290781048,0.90661,2759.8,2759.3,0.61547284]
[1645290781447,0.00305631,2759.6,2759.3,0.56547284]
[1645290781647,0.90661,2759.8,2759.7,0.00611262]
[1645290785097,1.20661,2759.8,2759.7,0.00611262]
[1645290785300,0.90661,2759.8,2759.7,0.00611262]
[1645290786900,1.50661,2759.8,2759.7,0.00611262]
[1645290787099,1.50661,2759.8,2759.7,3.60611262]
[1645290787398,0.90661,2759.8,2759.7,3.60611262]
[1645290792299,0.90661,2759.8,2759.7,3.55611262]
[1645290797852,0.90661,2759.8,2758.7,0.1811]
[1645290797853,43.44388738,2759.7,2758.7,0.1811]
[1645290798055,0.90686,2759.4,2758.8,1.53990199]
[1645290798257,0.09890367,2759.2,2758.4,0.66032833]
[1645290798458,0.09890367,2759.2,2759.1,0.00326562]
[1645290798757,0.71001983,2759.2,2759.1,0.00326562]
[1645290799052,1.01001983,2759.2,2759.1,0.00326562]
[1645290799302,1.01001983,2759.2,2758.5,1.54003994]
[1645290799303,0.90688,2759.0,2758.5,1.54003994]
[1645290799499,0.90688,2759.0,2758.6,1.54003994]
[1645290799698,0.90688,2759.0,2758.2,1.15464169]
[1645290799899,0.90688,2759.0,2758.3,1.54009379]
[1645290800701,0.90688,2759.0,2758.5,0.00326568]
[1645290801502,0.90688,2759.0,2758.4,1.54009379]
[1645290801901,0.90688,2759.0,2758.6,0.0032656]
[1645290802302,1.50688,2759.0,2758.6,0.0032656]
[1645290802602,1.81395,2758.9,2758.6,0.0032656]
[1645290802802,3.11395,2758.9,2758.2,0.00654169]
[1645290803049,0.90691,2758.8,2758.7,0.00314162]
[1645290803448,1.90691,2758.8,2758.7,0.00314162]
[1645290804152,1.90691,2758.8,2758.6,0.00314164]
[1645290804947,1.0,2758.8,2758.6,0.00314164]
[1645290805149,0.3,2759.0,2758.3,1.54007109]
[1645290805348,2.50684,2759.1,2758.3,1.54007109]
[1645290805547,2.50684,2759.1,2758.6,0.00314167]
[1645290805548,3.03184,2759.1,2758.6,0.00314167]
[1645290806151,2.125,2759.1,2758.6,0.00314167]
[1645290806354,2.125,2759.1,2758.3,1.54007109]
[1645290806550,1.525,2759.1,2758.4,1.54007109]
[1645290806801,2.9508,2759.2,2758.7,0.00326554]
[1645290807003,3.0225,2759.3,2758.7,0.00326554]
[1645290807202,1.3,2759.4,2758.9,0.65026799]
[1645290807401,1.3,2759.4,2759.0,1.54007109]
[1645290807601,0.3,2759.4,2759.0,1.54007109]
[1645290807799,0.3,2759.5,2759.0,1.54007109]
[1645290808207,0.25,2759.5,2759.0,1.54007109]
[1645290809104,0.25,2759.5,2759.1,0.00320411]
[1645290810101,0.25,2759.5,2759.0,1.54007109]
[1645290810302,0.90675,2759.4,2759.1,0.00320411]
[1645290810548,0.90675,2759.4,2759.1,3.60320411]
[1645290810750,0.90675,2759.4,2759.2,1.54007109]
[1645290812554,1.20675,2759.4,2759.2,1.54007109]
[1645290813354,0.525,2759.3,2759.2,1.54007109]
[1645290813554,0.825,2759.3,2759.2,1.54007109]
[1645290813754,1.825,2759.3,2759.2,1.54007109]
[1645290815803,1.775,2759.3,2759.2,1.54007109]
[1645290817107,1.725,2759.3,2759.2,1.54007109]
[1645290818957,0.90675,2759.4,2759.2,1.54007109]
[1645290821152,1.20675,2759.4,2759.2,1.54007109]
[1645290821353,1.73175,2759.4,2759.2,1.54007109]
[1645290821552,2.73175,2759.4,2759.2,1.54007109]
[1645290821803,2.43175,2759.4,2759.2,1.54007109]
[1645290822204,1.90675,2759.4,2759.2,1.54007109]
[1645290822402,1.90675,2759.4,2759.2,1.57595365]
[1645290822605,1.90675,2759.4,2759.3,1.54007109]
[1645290823204,2.20675,2759.4,2759.3,1.54007109]
[1645290823404,1.90675,2759.4,2759.3,1.54007109]
[1645290823608,1.90675,2759.4,2759.3,1.49007109]
[1645290823804,1.90675,2759.4,2759.2,0.03588256]
[1645290824205,2.20675,2759.4,2759.2,0.03588256]
[1645290824406,2.20675,2759.4,2759.2,0.01238256]
[1645290824407,5.0,2759.3,2759.2,0.01238256]
[1645290824616,5.0,2759.3,2759.1,3.6]
[1645290824617,46.98761744,2759.2,2759.1,3.60305722]
[1645290824807,1.825,2759.2,2759.1,3.60305722]
[1645290825005,43.39694278,2759.1,2758.2,1.14054169]
[1645290825214,0.90713,2758.9,2758.2,0.00654169]
[1645290825406,0.525,2758.8,2758.2,0.00654169]
[1645290825661,4.025,2758.8,2758.2,0.00654169]
[1645290825857,1.0,2758.7,2758.2,0.00654169]
[1645290826060,4.025,2758.6,2758.2,0.00654169]
[1645290826262,0.90731,2758.3,2758.2,0.00654169]
[1645290826462,1.43231,2758.3,2758.2,0.00654169]
[1645290826764,2.68231,2758.3,2758.2,0.00654169]
[1645290827761,2.38231,2758.3,2758.2,0.00654169]
[1645290830309,3.2895175,2758.3,2758.2,0.00654169]
[1645290831308,2.38231,2758.3,2758.2,0.00654169]
[1645290832711,2.98231,2758.3,2758.2,0.00654169]
[1645290832913,6.48231,2758.3,2758.2,0.00654169]
[1645290833353,2.98231,2758.3,2758.2,0.00654169]
[1645290833553,46.99345831,2758.2,2758.1,0.00305762]
[1645290833755,0.825,2758.2,2758.1,0.00305762]
[1645290833960,1.825,2758.2,2757.1,0.00315125]
[1645290834154,0.90727,2757.9,2757.1,0.00315125]
[1645290834361,0.9072636,2758.3,2757.1,0.00315125]
[1645290834362,3.8421,2758.9,2758.2,0.4]
[1645290834558,3.86124456,2758.9,2758.2,0.4]
[1645290835355,3.86124456,2758.9,2758.2,0.93486289]
[1645290835556,3.86124456,2758.9,2758.4,0.00305764]
[1645290835557,4.16124456,2758.9,2758.4,0.00305764]
[1645290835857,1.0,2758.8,2758.4,0.00305764]
[1645290836255,0.90698,2758.8,2758.4,0.00305764]
[1645290836457,0.90698,2758.8,2758.2,0.4]
[1645290836655,0.90698,2758.8,2758.5,0.00305762]
[1645290837511,0.90698,2758.8,2758.2,0.4]
[1645290837706,0.90713,2758.7,2758.2,0.4]
[1645290837908,0.3,2758.6,2758.5,0.00305759]
[1645290838510,1.3,2758.6,2758.5,0.00305759]
[1645290838706,1.3,2758.6,2758.2,0.4]
[1645290838707,0.3,2758.6,2758.2,0.4]
[1645290838907,2.20701,2758.6,2758.2,0.4]
[1645290839108,1.20701,2758.6,2758.4,0.00305764]
[1645290839306,2.20701,2758.6,2758.4,0.00305764]
[1645290839507,1.20701,2758.6,2758.4,0.00305764]
[1645290839707,2.20701,2758.6,2758.4,0.00305764]
[1645290839910,1.20701,2758.6,2758.2,0.4]
[1645290840111,1.20701,2758.6,2758.2,1.07573413]
[1645290840112,2.20701,2758.6,2758.2,1.07573413]
[1645290840310,2.20701,2758.6,2758.4,0.00305766]
[1645290840762,1.20701,2758.6,2758.4,0.00305766]
[1645290840961,2.20701,2758.6,2758.4,0.00305766]
[1645290841166,1.20701,2758.6,2758.2,0.4]
[1645290841364,2.20701,2758.6,2758.4,0.00305766]
[1645290842464,2.20701,2758.6,2758.2,0.4]
[1645290842667,2.20701,2758.6,2758.4,0.00305766]
[1645290843573,2.20701,2758.6,2758.2,0.4]
[1645290843765,2.20701,2758.6,2758.4,0.00305766]
[1645290844806,2.20701,2758.6,2758.3,1.54019118]
[1645290845006,2.20701,2758.6,2758.4,0.00305766]
[1645290846006,2.20701,2758.6,2758.3,1.54019118]
[1645290846208,2.20701,2758.6,2758.4,0.00305766]
[1645290847209,2.20701,2758.6,2758.2,0.4]
[1645290847408,2.20701,2758.6,2758.4,0.00305766]
[1645290848062,0.16582004,2758.5,2758.4,0.00305766]
[1645290848459,0.16582004,2758.5,2758.2,0.4]
[1645290848660,2.20701,2758.6,2758.4,0.00305766]
[1645290849661,2.20701,2758.6,2758.2,0.4]
[1645290849861,2.20701,2758.6,2758.4,0.00305766]
[1645290850860,2.20701,2758.6,2758.2,0.4]
[1645290851062,2.20701,2758.6,2758.4,0.00305766]
[1645290851665,0.90701,2758.6,2758.4,0.00305766]
[1645290851919,0.54414456,2758.9,2758.4,2.33754759]
[1645290852117,0.94729123,2759.0,2758.5,1.54014759]
[1645290852518,1.49259254,2759.0,2758.5,1.54014759]
[1645290852716,1.49259254,2759.0,2758.8,0.57603642]
[1645290852918,0.94729123,2759.0,2758.8,0.57603642]
[1645290853519,0.94729123,2759.0,2758.8,0.5790939]
[1645290854021,0.94729123,2759.0,2758.8,0.57812898]
[1645290854416,0.94729123,2759.0,2758.8,0.5750715]
[1645290854618,0.94729123,2759.0,2758.8,0.57812898]
[1645290855665,1.81372,2759.3,2758.9,1.53984199]
[1645290855861,0.90677,2759.4,2758.9,1.53984199]
[1645290856664,0.00305662,2759.5,2758.9,1.53984199]
[1645290856863,1.0,2759.5,2758.9,1.53984199]
[1645290857061,1.00305678,2759.5,2759.0,0.0030574]
[1645290858064,1.0,2759.5,2758.9,0.4]
[1645290858265,1.00305685,2759.5,2759.0,0.00305747]
[1645290858762,3.11659685,2759.5,2759.0,0.00305747]
[1645290859163,3.11354,2759.5,2759.0,1.5398392]
[1645290859412,3.11659685,2759.5,2759.0,1.54289666]
[1645290859614,3.11659685,2759.5,2759.0,0.00305746]
[1645290859812,2.20977685,2759.5,2759.0,0.00305746]
[1645290860312,2.20672,2759.5,2759.0,1.53982803]
[1645290860513,2.20672,2759.5,2758.9,0.4]
[1645290860714,2.20672,2759.5,2759.0,1.54288397]
[1645290860715,2.20977685,2759.5,2759.0,1.54288397]
[1645290860922,0.00305685,2759.5,2759.0,1.54288397]
[1645290861316,0.00305685,2759.5,2759.0,2.34168397]
[1645290861517,8.16,2759.8,2759.5,0.00611369]
[1645290861715,0.01906906,2760.2,2759.6,1.53982651]
[1645290861716,0.0068446,2760.2,2759.6,1.53982651]
[1645290861916,0.01906906,2760.2,2759.8,0.52086468]
[1645290862118,0.01222446,2760.2,2759.8,0.52086468]
[1645290862815,7.6268446,2760.3,2759.8,0.52086468]
[1645290862816,7.3268446,2760.3,2759.8,0.52086468]
[1645290863071,7.3268446,2760.3,2759.9,1.53934454]
[1645290863072,0.0068446,2760.3,2759.9,1.53934454]
[1645290863264,0.0068446,2760.5,2759.9,1.53934454]
[1645290863474,0.0068446,2760.6,2760.0,1.8119455]
[1645290863662,1.73800403,2761.3,2760.0,1.8119455]
[1645290863663,0.0068446,2760.7,2760.1,1.53934454]
[1645290863871,8.7338149,2760.9,2760.1,1.53934454]
[1645290863872,3.5068446,2760.8,2760.1,1.53934454]
[1645290864062,3.5068446,2760.8,2759.9,1.53934454]
[1645290864063,4.4131446,2760.8,2759.9,1.53934454]